[Event "German-ch Blitz Women 2022"]
[Site "Magdeburg"]
[Date "2022.08.13"]
[Round "21.12"]
[White "Skibbe, Diana"]
[Black "Rath, Alina"]
[Result "0-1"]
[ECO "B21"]
[WhiteElo "1943"]
[BlackElo "2062"]
[Annotator "NA RC"]
[PlyCount "122"]
[EventDate "2022.08.10"]
[EventType "tourn"]
[EventCountry "GER"]
[SourceTitle "playchess.com"]
[Source "ChessBase"]
[SourceQuality "1"]
[TimeControl "180+2"]

1. e4 {[%emt 0:00:00]} c5 {[%emt 0:00:00]} 2. f4 {[%emt 0:00:05]} Nc6 {[%emt 0:00:01]} 3. Nf3 {[%emt 0:00:02]} g6 {[%emt 0:00:02]} 4. g3 {[%emt 0:00:02]} Bg7 {[%emt 0:00:01]} 5. Bg2 {[%emt 0:00:02]} e6 {[%emt 0:00:01]} 6. O-O {[%emt 0:00:10]} d6 {[%emt 0:00:03]} 7. d3 {[%emt 0:00:06]} Nge7 {[%emt 0:00:01]} 8. c3 {[%emt 0:00:02]} d5 {[%emt 0:00:02]} 9. e5 {[%emt 0:00:02]} d4 {[%emt 0:00:02]} 10. Nbd2 {[%emt 0:00:02]} dxc3 {[%emt 0:00:05]} 11. bxc3 {[%emt 0:00:02]} Qxd3 {[%emt 0:00:06]} 12. Bb2 {[%emt 0:00:11]} O-O {[%emt 0:00:11]} 13. Qe1 {[%emt 0:00:05]} Nf5 {[%emt 0:00:20]} 14. Qf2 {[%emt 0:00:18]} Qe3 {[%emt 0:00:04]} 15. Rfe1 {[%emt 0:00:08]} Qxf2+ {[%emt 0:00:02]} 16. Kxf2 {[%emt 0:00:01]} Nfe7 {[%emt 0:00:05]} 17. Ne4 {[%emt 0:00:02]} b6 {[%emt 0:00:02]} 18. Nd6 {[%emt 0:00:04]} Ba6 {[%emt 0:00:01]} 19. Nd2 {[%emt 0:00:08]} Rad8 {[%emt 0:00:04]} 20. N2e4 {[%emt 0:00:05]} Na5 {[%emt 0:00:25]} 21. Bf1 {[%emt 0:00:16]} Bxf1 {[%emt 0:00:03]} 22. Kxf1 {[%emt 0:00:02]} Nf5 {[%emt 0:00:08]} 23. Nxf5 {[%emt 0:00:07]} gxf5 {[%emt 0:00:03]} 24. Nd6 {[%emt 0:00:01]} Rd7 {[%emt 0:00:06]} 25. Rad1 {[%emt 0:00:07]} Rfd8 {[%emt 0:00:01]} 26. Ke2 {[%emt 0:00:01]} Bf8 {[%emt 0:00:16]} 27. h3 {[%emt 0:00:12]} Bxd6 {[%emt 0:00:03]} 28. exd6 {[%emt 0:00:02]} Rxd6 {[%emt 0:00:01]} 29. Rxd6 {[%emt 0:00:10]} Rxd6 {[%emt 0:00:01]} 30. g4 {[%emt 0:00:05]} fxg4 {[%emt 0:00:08]} 31. Rg1 {[%emt 0:00:04]} Kf8 {[%emt 0:00:06]} 32. hxg4 {[%emt 0:00:03]} Nc4 {[%emt 0:00:02]} 33. Bc1 {[%emt 0:00:02]} Rd5 {[%emt 0:00:03]} 34. Rh1 {[%emt 0:00:05]} Kg7 {[%emt 0:00:02]} 35. a4 {[%emt 0:00:10]} f6 {[%emt 0:00:02]} 36. Rh3 {[%emt 0:00:16]} e5 {[%emt 0:00:02]} 37. f5 {[%emt 0:00:02]} Nd6 {[%emt 0:00:04]} 38. Bh6+ {[%emt 0:00:02]} Kf7 {[%emt 0:00:02]} 39. Be3 {[%emt 0:00:03]} Kg8 {[%emt 0:00:03]} 40. Rh6 {[%emt 0:00:02]} Ne8 {[%emt 0:00:02]} 41. g5 {[%emt 0:00:02]} Rd6 {[%emt 0:00:05]} 42. g6 {[%emt 0:00:01]} hxg6 {[%emt 0:00:02]} 43. Rxg6+ {[%emt 0:00:01]} Kf7 {[%emt 0:00:03]} 44. Bh6 {[%emt 0:00:02]} a6 {[%emt 0:00:13]} 45. Rg1 {[%emt 0:00:03]} b5 {[%emt 0:00:01]} 46. axb5 {[%emt 0:00:03]} axb5 {[%emt 0:00:01]} 47. Ra1 {[%emt 0:00:02]} Rd7 {[%emt 0:00:01]} 48. Ra5 {[%emt 0:00:01]} Rb7 {[%emt 0:00:03]} 49. Ra1 {[%emt 0:00:03]} Nd6 {[%emt 0:00:01]} 50. Rf1 {[%emt 0:00:02]} b4 {[%emt 0:00:01]} 51. cxb4 {[%emt 0:00:02]} cxb4 {[%emt 0:00:01]} 52. Rd1 {[%emt 0:00:01]} Nxf5 {[%emt 0:00:02]} 53. Bc1 {[%emt 0:00:02]} Nd4+ {[%emt 0:00:03]} 54. Kd3 {[%emt 0:00:01]} Ne6 {[%emt 0:00:03]} 55. Kc4 {[%emt 0:00:01]} b3 {[%emt 0:00:01]} 56. Bb2 {[%emt 0:00:01]} Ng5 {[%emt 0:00:07]} 57. Rf1 {[%emt 0:00:02]} Kg6 {[%emt 0:00:01]} 58. Rg1 {[%emt 0:00:01]} Kf5 {[%emt 0:00:08]} 59. Rf1+ {[%emt 0:00:02]} Ke6 {[%emt 0:00:01]} 60. Rf2 {[%emt 0:00:03]} Ne4 {[%emt 0:00:01]} 61. Rf1 {[%emt 0:00:02]} Nd2+ {[%emt 0:00:01]} 0-1

[Event "German-ch Blitz Women 2022"]
[Site "Magdeburg"]
[Date "2022.08.13"]
[Round "22.1"]
[White "Paehtz, Elisabeth"]
[Black "Rath, Alina"]
[Result "1/2-1/2"]
[ECO "D00"]
[WhiteElo "2484"]
[BlackElo "2062"]
[Annotator "TA"]
[PlyCount "87"]
[EventDate "2022.08.10"]
[EventType "tourn"]
[EventCountry "GER"]
[SourceTitle "playchess.com"]
[Source "ChessBase"]
[SourceQuality "1"]
[TimeControl "180+2"]

{[%evp 9,87,3,0,0,15,8,22,24,28,4,44,43,44,43,42,44,43,42,43,43,43,43,42,44,41,36,78,83,165,161,179,175,184,45,45,45,52,42,61,22,203,212,266,249,241,95,325,102,131,107,362,170,168,162,181,113,143,110,108,106,120,131,136,134,168,122,147,150,148,137,140,132,164,147,164,138,135,133,823,597]} 1. d4 {[%emt 0:00:01]} d5 {[%emt 0:00:00]} 2. Bf4 {[%emt 0:00:01]} Nf6 {[%emt 0:00:02]} 3. e3 {[%emt 0:00:01]} e6 {[%emt 0:00:01]} 4. Nd2 {[%emt 0:00:02]} c5 {[%emt 0:00:01]} 5. c3 {[%emt 0:00:01]} Bd6 {[%emt 0:00:02]} 6. Ngf3 {[%emt 0:00:04] D00: 1 d4 d5: Unusual lines.} Bxf4 {[%emt 0:00:10]} 7. exf4 {[%emt 0:00:01]} cxd4 {[%emt 0:00:01]} 8. Nxd4 {[%emt 0:00:01] The position is equal.} O-O {[%emt 0:00:02]} 9. Bd3 {[%emt 0:00:03]} Nc6 {[%emt 0:00:02]} 10. N2f3 {[%emt 0:00:01]} Qc7 {[%emt 0:00:02]} 11. g3 {[%emt 0:00:17]} b6 {[%emt 0:00:02]} 12. Nxc6 {[%emt 0:00:03]} Qxc6 {[%emt 0:00:02]} 13. Nd4 {[%emt 0:00:03]} Qc7 {[%emt 0:00:03]} 14. O-O {[%emt 0:00:05]} Bb7 {[%emt 0:00:01]} 15. Qe2 {[%emt 0:00:04] [#]} Rfe8 $146 {[%emt 0:00:11]} ({Predecessor:} 15... Rac8 16. Rae1 Rfe8 17. Bb1 Qc4 18. Qd1 Ba6 19. f3 Qc5 20. Rf2 g6 21. Kg2 Bb7 {1-0 (50) Paehtz,E (2487)-Chernyak,V (2186) St Petersburg 2018}) 16. Rfe1 {[%emt 0:00:06]} a6 {[%emt 0:00:06]} 17. a4 {[%emt 0:00:09]} a5 {[%emt 0:00:09]} 18. Bb5 {[%emt 0:00:02]} Rec8 {[%emt 0:00:05]} (18... Nd7 $16) 19. f5 $18 {[%emt 0:00:09]} exf5 {[%emt 0:00:15]} 20. Nxf5 {[%emt 0:00:02]} Rd8 {[%emt 0:00:02]} 21. Qe7 {[%emt 0:00:08]} (21. Qe3 $18 {aiming for Qg5.} Ne4 22. Nd4) 21... Qxe7 $14 {[%emt 0:00:19]} 22. Rxe7 {[%emt 0:00:02]} Bc8 {[%emt 0:00:01]} 23. Nd4 {[%emt 0:00:06]} Kf8 {[%emt 0:00:25]} 24. Rae1 {[%emt 0:00:04]} Ne4 $2 {[%emt 0:00:02]} (24... Bd7 $11 {and Black stays safe.}) 25. Rc7 $18 {[%emt 0:00:05] And now f3 would win.} Bh3 {[%emt 0:00:15]} 26. f3 {[%emt 0:00:08]} Nd6 {[%emt 0:00:08] [#]} 27. Bc6 {[%emt 0:00:13]} (27. g4 $1 $18) 27... Rab8 $2 {[%emt 0:00:03]} (27... Rac8 $16 28. Rxc8 Bxc8) 28. Bxd5 $2 {[%emt 0:00:06]} (28. g4 $18 {has better winning chances.}) 28... Bd7 {[%emt 0:00:08]} 29. Bc6 {[%emt 0:00:02] White is much more active.} Bc8 {[%emt 0:00:07][%mdl 8192]} (29... Bxc6 $16 30. Nxc6 Rbc8) 30. Rce7 {[%emt 0:00:09]} (30. Ree7 $142) 30... Bb7 {[%emt 0:00:08]} 31. Kf2 {[%emt 0:00:13]} Rdc8 {[%emt 0:00:01]} 32. Bd7 {[%emt 0:00:03]} ({White should try} 32. Bb5 $18) 32... Rd8 {[%emt 0:00:02][%cal Od6e4]} 33. Nc6 {[%emt 0:00:16]} Bxc6 {[%emt 0:00:02]} 34. Bxc6 {[%emt 0:00:01][%cal Bd7c6,Bc6d5,Bd5b3][%mdl 32]} Rbc8 {[%emt 0:00:05]} 35. Bd5 {[%emt 0:00:15][%cal Oc3c4]} Rc5 {[%emt 0:00:02] Prevents c4.} 36. Bb3 {[%emt 0:00:04]} g6 {[%emt 0:00:03]} 37. R7e5 {[%emt 0:00:04]} (37. Ra7 $18) 37... Rxe5 {[%emt 0:00:03]} 38. Rxe5 $16 {[%emt 0:00:01][%mdl 4096] Endgame KRB-KRN} Rc8 {[%emt 0:00:01]} 39. Rd5 {[%emt 0:00:12]} Ke7 {[%emt 0:00:02]} 40. Rd4 {[%emt 0:00:02]} Nf5 {[%emt 0:00:03]} 41. Re4+ {[%emt 0:00:02]} Kf6 {[%emt 0:00:01]} 42. g4 {[%emt 0:00:02]} Nd6 {[%emt 0:00:02]} 43. Rd4 {[%emt 0:00:01]} Ke5 {[%emt 0:00:02][%mdl 8192] [#]} (43... Ke7 $16 44. Kg3 f6) 44. f4+ {[%emt 0:00:02][%mdl 32768] Weighted Error Value: White=0.31/Black=0.45. An unexpected result.} 1/2-1/2

[Event "German-ch Blitz Women 2022"]
[Site "Magdeburg"]
[Date "2022.08.13"]
[Round "22.2"]
[White "Kunze, Kerstin"]
[Black "Skibbe, Diana"]
[Result "1-0"]
[ECO "C80"]
[WhiteElo "2020"]
[BlackElo "1943"]
[Annotator "TA"]
[PlyCount "75"]
[EventDate "2022.08.10"]
[EventType "tourn"]
[EventCountry "GER"]
[SourceTitle "playchess.com"]
[Source "ChessBase"]
[SourceQuality "1"]
[TimeControl "180+2"]

{[%evp 15,75,-34,-34,-23,-34,-34,-27,-23,-16,-12,-3,-8,0,-28,-25,-44,-21,-41,-18,-27,-11,-20,0,-31,0,-7,8,1,12,0,16,25,14,0,0,0,0,0,0,0,0,-16,0,-20,0,-41,-22,-18,0,0,37,0,0,-99,0,-16,373,-87,34,27,27,28]} 1. e4 {[%emt 0:00:01]} e5 {[%emt 0:00:01]} 2. Nf3 {[%emt 0:00:02]} Nc6 {[%emt 0:00:01]} 3. Bb5 {[%emt 0:00:02]} a6 {[%emt 0:00:01]} 4. Ba4 {[%emt 0:00:00]} Nf6 {[%emt 0:00:02]} 5. O-O {[%emt 0:00:03][%cal Bh1f1,Bf1e1,Be1e5][%mdl 32]} Nxe4 {[%emt 0:00:01]} 6. Re1 {[%emt 0:00:17]} Nc5 {[%emt 0:00:08]} 7. Nxe5 {[%emt 0:00:09]} Nxe5 {[%emt 0:00:19]} 8. Rxe5+ {[%emt 0:00:02]} Be7 {[%emt 0:00:01]} 9. Bb3 {[%emt 0:00:06] C80: Open Ruy Lopez: Sidelines and 9 Nbd2.} Nxb3 {[%emt 0:00:12]} 10. axb3 {[%emt 0:00:04]} O-O {[%emt 0:00:03]} 11. d4 {[%emt 0:00:06] Black has an edge.} d6 {[%emt 0:00:12]} 12. Re1 {[%emt 0:00:03]} Bf6 {[%emt 0:00:02] [#]} 13. Nc3 $146 {[%emt 0:00:02]} ({Predecessor:} 13. c3 Be6 14. Be3 Re8 15. Nd2 Bf5 16. Qf3 Qc8 17. Qg3 g6 18. Bg5 Bg7 19. Qh4 {0-1 (40) Charest,J (1808)-Talbot,G (1992) Montreal 1991}) 13... c6 {[%emt 0:00:06]} 14. Be3 {[%emt 0:00:07]} Bf5 {[%emt 0:00:06]} 15. Rc1 {[%emt 0:00:03]} Bg6 {[%emt 0:00:03]} 16. Qf3 {[%emt 0:00:20]} d5 {[%emt 0:00:04]} 17. Na4 {[%emt 0:00:16]} b6 {[%emt 0:00:07]} 18. h3 {[%emt 0:00:20]} Be4 {[%emt 0:00:03]} 19. Qf4 {[%emt 0:00:03]} Qb8 {[%emt 0:00:11]} 20. Qg4 {[%emt 0:00:04]} Bg6 {[%emt 0:00:12]} 21. Bf4 {[%emt 0:00:03]} Qb7 {[%emt 0:00:04]} 22. c3 {[%emt 0:00:07]} Rfe8 {[%emt 0:00:04]} 23. Qg3 {[%emt 0:00:07]} Re4 {[%emt 0:00:12]} 24. f3 {[%emt 0:00:08]} Ree8 {[%emt 0:00:04]} 25. Rxe8+ {[%emt 0:00:13]} Rxe8 {[%emt 0:00:01]} 26. Re1 {[%emt 0:00:01]} Rxe1+ {[%emt 0:00:13]} 27. Qxe1 {[%emt 0:00:01][%cal Re1e8]} h6 {[%emt 0:00:16]} 28. Qe8+ {[%emt 0:00:29]} Kh7 {[%emt 0:00:02]} 29. Be5 {[%emt 0:00:05] Threatens to win with Bxf6.} Be7 {[%emt 0:00:08]} 30. c4 {[%emt 0:00:21]} f6 {[%emt 0:00:07]} 31. Qb8 {[%emt 0:00:05]} Qd7 {[%emt 0:00:16]} 32. Nxb6 {[%emt 0:00:04]} Qe6 {[%emt 0:00:09]} 33. Bg3 {[%emt 0:00:00]} (33. Qc8 $5 {[%cal Rc8e6]} Bf5 34. Qxe6 Bxe6 35. cxd5 cxd5 36. Bg3 $11) 33... Qe3+ {[%emt 0:00:07]} 34. Kh2 {[%emt 0:00:06]} (34. Bf2 $11 {keeps the balance.} Qc1+ 35. Kh2) 34... Qxb3 {[%emt 0:00:09]} (34... Qxd4 $17 {( -> ...Bc5)} 35. b4 a5 36. cxd5 (36. bxa5 {leads to mate.} Bc5) 36... Bxb4) 35. Qc7 {[%emt 0:00:01] [#] And now c5 would win.} Bb4 {[%emt 0:00:07][%mdl 8192]} (35... dxc4 $1 $11 36. d5 {[#]} cxd5 $1 37. Nxd5 c3 $1 38. Qxe7 Qxd5 39. bxc3 a5) 36. cxd5 $2 {[%emt 0:00:05]} (36. c5 $18 {Black must now prevent Nd7.} Be8 37. Qe7 Qxb2 38. Qxe8 Qxd4 39. Bd6 (39. Qxc6 Bxc5 40. h4 Bxb6 $11)) 36... cxd5 {[%emt 0:00:05]} (36... Ba5 $17 37. dxc6 Bxb6) 37. Nd7 {[%emt 0:00:01] White wants to mate with Nxf6+.} Be7 {[%emt 0:00:11]} 38. Nb8 {[%emt 0:00:01][%mdl 32768] Weighted Error Value: White=0.44/Black=0.45. Loss on time!?} 1-0

[Event "German-ch Blitz Women 2022"]
[Site "Magdeburg"]
[Date "2022.08.13"]
[Round "22.3"]
[White "Doll, Rebecca"]
[Black "Braun, Kristin"]
[Result "0-1"]
[ECO "B72"]
[WhiteElo "1933"]
[BlackElo "1897"]
[Annotator "TA"]
[PlyCount "70"]
[EventDate "2022.08.10"]
[EventType "tourn"]
[EventCountry "GER"]
[SourceTitle "playchess.com"]
[Source "ChessBase"]
[SourceQuality "1"]
[TimeControl "180+2"]

{[%evp 19,70,44,50,37,41,36,49,9,12,0,0,0,0,0,0,0,0,0,14,8,6,4,23,37,53,4,4,0,0,-43,-43,-96,-77,-117,-62,-86,43,-72,-64,-45,-46,-529,-518,-522,-514,-522,-514,-589,-595,-1124,-1082,-29977,-29979]} 1. e4 {[%emt 0:00:01]} c5 {[%emt 0:00:00]} 2. Nf3 d6 3. d4 {[%emt 0:00:02]} cxd4 {[%emt 0:00:01]} 4. Nxd4 {[%emt 0:00:01]} Nf6 {[%emt 0:00:00]} 5. Nc3 g6 6. Be2 {[%emt 0:00:04]} Bg7 {[%emt 0:00:01]} 7. Be3 {[%emt 0:00:01]} O-O {[%emt 0:00:01]} 8. Qd2 {[%emt 0:00:01]} Nc6 {[%emt 0:00:01]} 9. O-O-O {[%emt 0:00:05]} Nxd4 {[%emt 0:00:07]} 10. Bxd4 {[%emt 0:00:03]} Be6 {[%emt 0:00:00]} 11. f4 {[%emt 0:00:08][%cal Og2g4] B72: Sicilian Dragon: 6 Be3, lines with h3+Bc4 and sidelines.} Rc8 {[%emt 0:00:15][%cal Ob7b5]} 12. Kb1 {[%emt 0:00:10]} Qa5 {[%emt 0:00:25][%cal Of6e4] [#] Threatens to win with ...Nxe4!} 13. Nd5 {[%emt 0:01:19] White is slightly better.} Qxd2 {[%emt 0:00:23] [#]} 14. Nxf6+ $146 {[%emt 0:00:01]} (14. Nxe7+ {feels hotter.} Kh8 15. Rxd2 Nxe4 16. Bxg7+ Kxg7 17. Rd4) ({Predecessor:} 14. Nxe7+ Kh8 15. Rxd2 Rce8 16. Bxf6 Bxf6 17. Nd5 Bxd5 18. Rxd5 Rxe4 19. Bf3 Rxf4 20. Rxd6 {1-0 (63) Hagarova,Z (2095)-Kalisky,V (2140) Slovakia 1994}) 14... Bxf6 {[%emt 0:00:05]} 15. Rxd2 {[%emt 0:00:02]} Bxd4 {[%emt 0:00:08]} 16. Rxd4 {[%emt 0:00:01]} Rc7 {[%emt 0:00:03]} 17. g4 {[%emt 0:00:04]} Rfc8 {[%emt 0:00:10]} 18. c3 {[%emt 0:00:01]} a6 {[%emt 0:00:09]} 19. h4 {[%emt 0:00:06]} Bc4 {[%emt 0:00:10]} 20. Bf3 {[%emt 0:00:03]} Be6 {[%emt 0:00:06]} 21. h5 {[%emt 0:00:07]} Kg7 {[%emt 0:00:03][%cal Og6g5]} 22. hxg6 {[%emt 0:00:04]} (22. g5 $14 {is more appropriate.}) 22... hxg6 $11 {[%emt 0:00:02]} 23. f5 {[%emt 0:00:01]} Bd7 {[%emt 0:00:05]} 24. Rhd1 {[%emt 0:00:07][%cal Oe4e5]} Bc6 {[%emt 0:00:08]} 25. Be2 {[%emt 0:00:07] [#]} (25. Rh1 $15) 25... Rh8 $1 $17 {[%emt 0:00:03]} 26. g5 {[%emt 0:00:05]} Rh4 {[%emt 0:00:07]} (26... Rh2 $17 27. Bc4 Rg2 28. f6+ exf6 29. gxf6+ Kxf6 30. Rxd6+ Ke5) 27. f6+ {[%emt 0:00:03]} Kf8 {[%emt 0:00:17]} (27... exf6 $17 28. gxf6+ Kh6) 28. fxe7+ {[%emt 0:00:01]} (28. e5 $1 $14 {keeps the upper hand.} Rxd4 29. Rxd4) 28... Rxe7 {[%emt 0:00:00]} 29. Rxd6 {[%emt 0:00:03]} Bxe4+ {[%emt 0:00:01]} 30. R6d3 $2 {[%mdl 8192] This costs White the game.} Bxd3+ $19 {[%emt 0:00:00]} 31. Bxd3 {[%emt 0:00:06]} Rg4 {[%emt 0:00:00] Inhibits Rg1.} 32. Kc2 {[%emt 0:00:10]} Rxg5 {[%emt 0:00:00]} 33. Bf1 {[%emt 0:00:07]} Rf5 {[%emt 0:00:00]} 34. Bg2 {[%emt 0:00:03]} Rf2+ {[%emt 0:00:00]} 35. Rd2 {[%emt 0:00:01]} Ree2 {[%emt 0:00:00] Weighted Error Value: White=1.00/Black=0.16 (very precise)} 0-1

[Event "German-ch Blitz Women 2022"]
[Site "Magdeburg"]
[Date "2022.08.13"]
[Round "22.4"]
[White "Wulf, Constanze"]
[Black "Grabowski, Petra"]
[Result "1-0"]
[ECO "A05"]
[WhiteElo "1835"]
[BlackElo "1643"]
[Annotator "NA RC COMBH"]
[PlyCount "161"]
[EventDate "2022.08.10"]
[EventType "tourn"]
[EventCountry "GER"]
[SourceTitle "playchess.com"]
[Source "ChessBase"]
[SourceQuality "1"]
[TimeControl "180+2"]

1. Nf3 {[%emt 0:00:02]} Nf6 {[%emt 0:00:02]} 2. b3 {[%emt 0:00:02]} g6 {[%emt 0:00:04]} 3. Bb2 {[%emt 0:00:01]} Bg7 {[%emt 0:00:01]} 4. e3 {[%emt 0:00:02]} O-O {[%emt 0:00:03]} 5. c4 {[%emt 0:00:03]} d6 {[%emt 0:00:08]} 6. Be2 {[%emt 0:00:01]} Bg4 {[%emt 0:00:06]} 7. h3 {[%emt 0:00:03]} Bxf3 {[%emt 0:00:04]} 8. Bxf3 {[%emt 0:00:02]} c6 {[%emt 0:00:04]} 9. d4 {[%emt 0:00:08]} Nbd7 {[%emt 0:00:04]} 10. O-O {[%emt 0:00:03]} Rb8 {[%emt 0:00:13]} 11. Nc3 {[%emt 0:00:13]} e5 {[%emt 0:00:21]} 12. Re1 {[%emt 0:00:24]} Qc7 {[%emt 0:00:09]} 13. Qc2 {[%emt 0:00:01]} Rfe8 {[%emt 0:00:06]} 14. Rad1 {[%emt 0:00:02]} exd4 {[%emt 0:00:04]} 15. exd4 {[%emt 0:00:04]} Nb6 {[%emt 0:00:14]} 16. Ne4 {[%emt 0:00:13]} Nxe4 {[%emt 0:00:07]} 17. Bxe4 {[%emt 0:00:08]} Rbd8 {[%emt 0:00:06]} 18. Bf3 {[%emt 0:00:07]} d5 {[%emt 0:00:07]} 19. Rxe8+ {[%emt 0:00:10]} Rxe8 {[%emt 0:00:02]} 20. cxd5 {[%emt 0:00:05]} Rd8 {[%emt 0:00:06]} 21. dxc6 {[%emt 0:00:09]} bxc6 {[%emt 0:00:06]} 22. Qxc6 {[%emt 0:00:04]} Qf4 {[%emt 0:00:05]} 23. Qe4 {[%emt 0:00:13]} Qd6 {[%emt 0:00:07]} 24. Ba1 {[%emt 0:00:19]} Qb4 {[%emt 0:00:01]} 25. Qe3 {[%emt 0:00:30]} Nd7 {[%emt 0:00:06]} 26. d5 {[%emt 0:00:04]} Nb6 {[%emt 0:00:06]} 27. Bxg7 {[%emt 0:00:03]} Kxg7 {[%emt 0:00:01]} 28. Qe5+ {[%emt 0:00:04]} Kg8 {[%emt 0:00:05]} 29. Qc7 {[%emt 0:00:06]} Qd6 {[%emt 0:00:14]} 30. Qxa7 {[%emt 0:00:06]} Rd7 {[%emt 0:00:09]} 31. Qa5 {[%emt 0:00:04]} h5 {[%emt 0:00:08]} 32. a4 {[%emt 0:00:00]} Rd8 {[%emt 0:00:09]} 33. Qb5 {[%emt 0:00:02]} Rb8 {[%emt 0:00:04]} 34. Qd3 {[%emt 0:00:04]} Rd8 {[%emt 0:00:02]} 35. Qd4 {[%emt 0:00:02]} Rb8 {[%emt 0:00:10]} 36. a5 {[%emt 0:00:03]} Nd7 {[%emt 0:00:05]} 37. Qc4 {[%emt 0:00:06]} Ne5 {[%emt 0:00:04]} 38. Qe4 {[%emt 0:00:04]} Rxb3 {[%emt 0:00:04]} 39. Ra1 {[%emt 0:00:05]} Rb4 {[%emt 0:00:01]} 40. Qe2 {[%emt 0:00:04]} Rb8 {[%emt 0:00:05]} 41. Qd1 {[%emt 0:00:02]} Nc4 {[%emt 0:00:02]} 42. a6 {[%emt 0:00:01]} Ra8 {[%emt 0:00:04]} 43. Qd4 {[%emt 0:00:02]} Ne5 {[%emt 0:00:05]} 44. Be2 {[%emt 0:00:01]} Nd7 {[%emt 0:00:02]} 45. Ra2 {[%emt 0:00:03]} Nb6 {[%emt 0:00:01]} 46. Qe4 {[%emt 0:00:04]} Qxd5 {[%emt 0:00:05]} 47. Qxd5 {[%emt 0:00:03]} Nxd5 {[%emt 0:00:01]} 48. Bf3 {[%emt 0:00:01]} Rd8 {[%emt 0:00:02]} 49. Rd2 {[%emt 0:00:02]} Rd6 {[%emt 0:00:06]} 50. Rxd5 {[%emt 0:00:01]} Rxa6 {[%emt 0:00:00]} 51. Kf1 {[%emt 0:00:03]} Ra1+ {[%emt 0:00:01]} 52. Ke2 {[%emt 0:00:00]} Kf8 {[%emt 0:00:01]} 53. Ke3 {[%emt 0:00:01]} Ke7 {[%emt 0:00:00]} 54. Rb5 {[%emt 0:00:02]} Ra3+ {[%emt 0:00:02]} 55. Kf4 {[%emt 0:00:03]} Ra4+ {[%emt 0:00:00]} 56. Kg3 {[%emt 0:00:03]} Ra3 {[%emt 0:00:01]} 57. Re5+ {[%emt 0:00:06]} Kf6 {[%emt 0:00:01]} 58. Re3 {[%emt 0:00:00]} Kg7 {[%emt 0:00:01]} 59. Rxa3 {[%emt 0:00:01]} Kf6 {[%emt 0:00:00]} 60. Ra6+ Kg7 61. Kf4 {[%emt 0:00:03]} Kh6 {[%emt 0:00:01]} 62. g4 {[%emt 0:00:01]} Kg7 {[%emt 0:00:01]} 63. gxh5 {[%emt 0:00:01]} gxh5 {[%emt 0:00:00]} 64. Bxh5 {[%emt 0:00:02]} Kf8 {[%emt 0:00:01]} 65. Ra7 {[%emt 0:00:01]} Kg7 {[%emt 0:00:00]} 66. Rxf7+ {[%emt 0:00:01]} Kh6 {[%emt 0:00:01]} 67. Bd1 {[%emt 0:00:02]} Kg6 {[%emt 0:00:01]} 68. Ra7 {[%emt 0:00:01]} Kf6 {[%emt 0:00:01]} 69. h4 {[%emt 0:00:01]} Kg6 {[%emt 0:00:00]} 70. Kg4 {[%emt 0:00:02]} Kh6 {[%emt 0:00:01]} 71. f4 Kg6 72. f5+ {[%emt 0:00:04]} Kf6 {[%emt 0:00:00]} 73. h5 {[%emt 0:00:02]} Ke5 {[%emt 0:00:01]} 74. h6 {[%emt 0:00:01]} Kd6 {[%emt 0:00:00]} 75. h7 Ke5 76. h8=Q+ {[%emt 0:00:04]} Ke4 {[%emt 0:00:01]} 77. Qe8+ {[%emt 0:00:02]} Kd3 {[%emt 0:00:01]} 78. Rd7+ {[%emt 0:00:02]} Kc4 {[%emt 0:00:01]} 79. Qc8+ {[%emt 0:00:01]} Kb5 {[%emt 0:00:00]} 80. Rb7+ {[%emt 0:00:01]} Ka6 {[%emt 0:00:01]} 81. Qa8# {[%emt 0:00:01]} 1-0

[Event "German-ch Blitz Women 2022"]
[Site "Magdeburg"]
[Date "2022.08.13"]
[Round "22.5"]
[White "Stangl, Anita"]
[Black "Khrapko, Marharyta"]
[Result "1-0"]
[ECO "B32"]
[WhiteElo "2023"]
[BlackElo "2128"]
[Annotator "NA RC"]
[PlyCount "107"]
[EventDate "2022.08.10"]
[EventType "tourn"]
[EventCountry "GER"]
[SourceTitle "playchess.com"]
[Source "ChessBase"]
[SourceQuality "1"]
[TimeControl "180+2"]

1. e4 {[%emt 0:00:00]} c5 {[%emt 0:00:00]} 2. Nf3 {[%emt 0:00:01]} Nc6 {[%emt 0:00:01]} 3. d4 {[%emt 0:00:01]} cxd4 4. Nxd4 e5 {[%emt 0:00:01]} 5. Nf3 {[%emt 0:00:02]} Nf6 {[%emt 0:00:02]} 6. Bd3 {[%emt 0:00:01]} d5 {[%emt 0:00:07]} 7. exd5 {[%emt 0:00:01]} Qxd5 {[%emt 0:00:04]} 8. O-O {[%emt 0:00:10]} Bb4 {[%emt 0:00:09]} 9. c3 {[%emt 0:00:08]} Be7 {[%emt 0:00:02]} 10. c4 {[%emt 0:00:15]} Qd6 {[%emt 0:00:23]} 11. Nc3 {[%emt 0:00:11]} Bg4 {[%emt 0:00:03]} 12. h3 {[%emt 0:00:18]} Bh5 {[%emt 0:00:01]} 13. Be2 {[%emt 0:00:07]} Qb8 {[%emt 0:00:30]} 14. Bg5 {[%emt 0:00:18]} O-O {[%emt 0:00:02]} 15. Bxf6 {[%emt 0:00:06]} Bxf6 {[%emt 0:00:01]} 16. Nd5 {[%emt 0:00:01]} Bd8 {[%emt 0:00:07]} 17. Qd2 {[%emt 0:00:14]} Kh8 {[%emt 0:00:09]} 18. Rfe1 {[%emt 0:00:05]} f5 {[%emt 0:00:04]} 19. Nxe5 {[%emt 0:00:10]} Nxe5 {[%emt 0:00:22]} 20. Bxh5 {[%emt 0:00:05]} Nxc4 {[%emt 0:00:03]} 21. Qc3 {[%emt 0:00:13]} b5 {[%emt 0:00:07]} 22. b3 {[%emt 0:00:04]} Ba5 {[%emt 0:00:06]} 23. b4 {[%emt 0:00:02]} Bb6 {[%emt 0:00:21]} 24. Bf3 {[%emt 0:00:03]} Bd8 {[%emt 0:00:22]} 25. Ne7 {[%emt 0:00:30]} Qd6 {[%emt 0:00:25]} 26. Nxf5 {[%emt 0:00:12]} Rxf5 {[%emt 0:00:06]} 27. Bxa8 {[%emt 0:00:00]} Rf8 {[%emt 0:00:09]} 28. Rad1 {[%emt 0:00:07]} Qb6 {[%emt 0:00:06]} 29. Bf3 {[%emt 0:00:11]} Bh4 {[%emt 0:00:02]} 30. Qd4 {[%emt 0:00:07]} Qxd4 {[%emt 0:00:02]} 31. Rxd4 {[%emt 0:00:00]} h6 {[%emt 0:00:02]} 32. Rxh4 {[%emt 0:00:01]} Nd2 {[%emt 0:00:02]} 33. Bc6 {[%emt 0:00:06]} a6 {[%emt 0:00:02]} 34. Re8 {[%emt 0:00:02]} Rxe8 {[%emt 0:00:02]} 35. Bxe8 {[%emt 0:00:00]} Nc4 {[%emt 0:00:01]} 36. Rd4 {[%emt 0:00:02]} Kh7 {[%emt 0:00:02]} 37. Bc6 {[%emt 0:00:02]} Kg6 {[%emt 0:00:02]} 38. Bb7 {[%emt 0:00:01]} Na3 {[%emt 0:00:03]} 39. Bxa6 {[%emt 0:00:03]} Nc2 {[%emt 0:00:01]} 40. Re4 {[%emt 0:00:04]} Kf5 {[%emt 0:00:01]} 41. f3 {[%emt 0:00:00]} Na3 {[%emt 0:00:02]} 42. Re7 {[%emt 0:00:03]} g5 {[%emt 0:00:03]} 43. Rb7 {[%emt 0:00:01]} h5 {[%emt 0:00:02]} 44. Bxb5 {[%emt 0:00:01]} h4 {[%emt 0:00:01]} 45. Bd3+ {[%emt 0:00:04]} Kf4 {[%emt 0:00:01]} 46. b5 {[%emt 0:00:02]} Kg3 {[%emt 0:00:03]} 47. Rg7 {[%emt 0:00:02]} Kf4 {[%emt 0:00:02]} 48. b6 {[%emt 0:00:01]} Ke3 {[%emt 0:00:02]} 49. b7 {[%emt 0:00:02]} Kxd3 {[%emt 0:00:03]} 50. b8=Q {[%emt 0:00:00]} Nc4 {[%emt 0:00:01]} 51. Qb3+ {[%emt 0:00:02]} Kd2 {[%emt 0:00:02]} 52. Qxc4 {[%emt 0:00:03]} g4 {[%emt 0:00:01]} 53. Rd7+ {[%emt 0:00:01]} Ke3 {[%emt 0:00:01]} 54. Qe4# {[%emt 0:00:01]} 1-0